fUST/lending_fUST_20250620
["ID","MTS","AMOUNT","RATE_DAILY","PERIOD"]
[366758316,1750434640102,-460.0,0.00019299,2]
[366758318,1750434640112,-460.0,0.00019299,2]
[366758320,1750434640122,-460.0,0.00019299,2]
[366758322,1750434640133,-460.0,0.00019299,2]
[366758324,1750434640143,-430.37332759,0.00019299,2]
[366758326,1750434640152,-401.46287726,0.00019299,2]
[366758328,1750434640163,-460.0,0.00019299,2]
[366758330,1750434640173,-460.0,0.00019299,2]
[366758331,1750434640183,-434.52499164,0.00019299,2]
[366758334,1750434640193,-460.0,0.00019299,2]
[366758335,1750434640204,-414.0709945,0.00019299,2]
[366758337,1750434640214,-460.0,0.00019299,2]
[366758340,1750434640224,-460.0,0.00019299,2]
[366758341,1750434640234,-460.0,0.00019299,2]
[366758342,1750434640244,-460.0,0.00019299,2]
[366758343,1750434640254,-460.0,0.00019299,2]
[366758345,1750434640264,-460.0,0.00019299,2]
[366758346,1750434640274,-460.0,0.00019299,2]
[366758347,1750434640284,-460.0,0.00019299,2]
[366758348,1750434640294,-460.0,0.000193,2]
[366758349,1750434640305,-512.21350188,0.000193,2]
[366758350,1750434640315,-460.0,0.000193,2]
[366758351,1750434640324,-500.0,0.000193,2]
[366758353,1750434640334,-500.0,0.000193,2]
[366758355,1750434640344,-460.0,0.00019301,2]
[366758358,1750434640354,-460.0,0.00019301,2]
[366758360,1750434640364,-460.0,0.00019301,2]
[366758362,1750434640375,-460.0,0.00019301,2]
[366758363,1750434640385,-430.0,0.00019301,2]
[366758366,1750434640395,-460.0,0.00019301,2]
[366758367,1750434640405,-460.0,0.00019301,2]
[366758370,1750434640415,-280.12261847,0.00019301,2]
[366758372,1750434640425,-460.0,0.00019301,2]
[366758374,1750434640435,-460.0,0.00019301,2]
[366758376,1750434640445,-460.0,0.00019301,2]
[366758378,1750434640455,-460.0,0.00019301,2]
[366758380,1750434640465,-460.0,0.00019301,2]
[366758382,1750434640475,-471.02488236,0.00019301,2]
[366758384,1750434640485,-460.0,0.00019301,2]
[366758386,1750434640495,-461.92134131,0.00019301,2]
[366758388,1750434640505,-460.0,0.00019301,2]
[366758390,1750434640515,-460.0,0.00019301,2]
[366758392,1750434640528,-460.0,0.00019301,2]
[366758394,1750434640538,-460.0,0.00019301,2]
[366758396,1750434640547,-460.0,0.00019301,2]
[366758398,1750434640557,-460.0,0.00019301,2]
[366758400,1750434640570,-460.0,0.00019301,2]
[366758402,1750434640581,-458.81128958,0.00019301,2]
[366758404,1750434640592,-460.0,0.00019301,2]
[366758406,1750434640604,-460.0,0.00019301,2]
[366758408,1750434640614,-460.0,0.00019301,2]
[366758410,1750434640625,-460.0,0.00019301,2]
[366758412,1750434640635,-460.0,0.00019301,2]
[366758414,1750434640645,-460.0,0.00019301,2]
[366758416,1750434640655,-460.0,0.00019301,2]
[366758418,1750434640665,-460.0,0.00019301,2]
[366758420,1750434640674,-460.0,0.00019301,2]
[366758422,1750434640684,-460.0,0.00019301,2]
[366758424,1750434640695,-518.23033614,0.00019301,2]
[366758426,1750434640704,-500.0,0.00019301,2]
[366758428,1750434640714,-405.65824319,0.00019301,2]
[366758430,1750434640724,-460.0,0.00019301,2]
[366758432,1750434640734,-500.0,0.00019301,2]
[366758434,1750434640744,-500.0,0.00019301,2]
[366758436,1750434640754,-500.0,0.00019301,2]
[366758438,1750434640764,-612.09399453,0.00019301,2]
[366758440,1750434640774,-460.0,0.00019301,2]
[366758442,1750434640784,-460.0,0.00019301,2]
[366758444,1750434640794,-460.0,0.00019301,2]
[366758446,1750434640805,-460.0,0.00019301,2]
[366758448,1750434640815,-460.0,0.00019301,2]
[366758450,1750434640825,-460.0,0.00019301,2]
[366758452,1750434640834,-460.0,0.00019301,2]
[366758454,1750434640844,-460.0,0.00019301,2]
[366758456,1750434640855,-460.0,0.00019301,2]
[366758458,1750434640864,-460.0,0.00019301,2]
[366758460,1750434640874,-424.6179984,0.00019301,2]
[366758462,1750434640884,-460.0,0.00019301,2]
[366758464,1750434640896,-460.0,0.00019301,2]
[366758466,1750434640907,-460.0,0.00019301,2]
[366758468,1750434640917,-153.91344576,0.00019301,2]
[366758470,1750434640927,-460.0,0.00019301,2]
[366758472,1750434640936,-461.12406729,0.00019301,2]
[366758474,1750434640947,-460.0,0.00019301,2]
[366758476,1750434640957,-460.0,0.00019301,2]
[366758478,1750434640968,-460.0,0.00019301,2]
[366758480,1750434640978,-460.0,0.00019301,2]
[366758482,1750434640988,-460.0,0.00019301,2]
[366758484,1750434640998,-460.0,0.00019301,2]
[366758486,1750434641007,-387.40667591,0.00019301,2]
[366758488,1750434641018,-460.0,0.00019301,2]
[366758490,1750434641027,-460.0,0.00019301,2]
[366758492,1750434641037,-460.0,0.00019301,2]
[366758494,1750434641047,-460.0,0.00019301,2]
[366758495,1750434641057,-460.0,0.00019301,2]
[366758496,1750434641067,-460.0,0.00019301,2]
[366758497,1750434641077,-500.0,0.00019301,2]
[366758498,1750434641086,-375.78904739,0.00019301,2]
[366758499,1750434641097,-460.0,0.00019301,2]
[366758500,1750434641107,-460.0,0.00019301,2]
[366758501,1750434641117,-460.0,0.00019301,2]
[366758502,1750434641127,-460.0,0.00019301,2]
[366758503,1750434641136,-460.0,0.00019301,2]
[366758504,1750434641146,-460.0,0.00019301,2]
[366758505,1750434641156,-460.0,0.00019301,2]
[366758506,1750434641166,-517.83,0.00019301,2]
[366758507,1750434641176,-460.0,0.00019301,2]
[366758508,1750434641187,-460.0,0.00019301,2]
[366758509,1750434641197,-460.0,0.00019301,2]
[366758510,1750434641206,-218.73002639,0.00019301,2]
[366758511,1750434641216,-460.0,0.00019301,2]
[366758512,1750434641226,-460.0,0.00019301,2]
[366758513,1750434641236,-460.0,0.00019301,2]
[366758514,1750434641246,-460.0,0.00019301,2]
[366758515,1750434641255,-460.0,0.00019301,2]
[366758517,1750434641266,-460.0,0.00019301,2]
[366758519,1750434641275,-460.0,0.00019301,2]
[366758521,1750434641285,-460.0,0.00019301,2]
[366758523,1750434641295,-460.0,0.00019301,2]
[366758525,1750434641305,-460.0,0.00019301,2]
[366758526,1750434641315,-460.0,0.00019301,2]
[366758527,1750434641325,-460.0,0.00019301,2]
[366758529,1750434641335,-460.0,0.00019301,2]
[366758531,1750434641345,-460.0,0.00019301,2]
[366758533,1750434641355,-460.0,0.00019301,2]
[366758535,1750434641365,-460.0,0.00019301,2]
[366758537,1750434641376,-460.0,0.00019301,2]
[366758539,1750434641386,-460.0,0.00019301,2]
[366758541,1750434641395,-460.0,0.00019301,2]
[366758543,1750434641405,-460.0,0.00019301,2]
[366758545,1750434641415,-460.0,0.00019301,2]
[366758547,1750434641425,-460.0,0.00019301,2]
[366758549,1750434641435,-460.0,0.00019301,2]
[366758551,1750434641445,-460.0,0.00019301,2]
[366758553,1750434641454,-460.0,0.00019301,2]
[366758555,1750434641463,-460.0,0.00019301,2]
[366758556,1750434641474,-460.0,0.00019301,2]
[366758558,1750434641484,-460.48,0.00019301,2]
[366758560,1750434641494,-360.11180664,0.00019301,2]
[366758562,1750434641504,-460.0,0.00019301,2]
[366758563,1750434641513,-460.0,0.00019301,2]
[366758565,1750434641524,-406.30922076,0.00019301,2]
[366758567,1750434641537,-460.0,0.00019301,2]
[366758569,1750434641547,-460.0,0.00019301,2]
[366758571,1750434641557,-678.06,0.00019301,2]
[366758573,1750434641567,-460.0,0.00019301,2]
[366758575,1750434641577,-460.0,0.00019301,2]
[366758576,1750434641587,-460.0,0.00019301,2]
[366758577,1750434641598,-460.0,0.00019301,2]
[366758578,1750434641608,-460.0,0.00019301,2]
[366758579,1750434641618,-460.0,0.00019301,2]
[366758580,1750434641628,-460.0,0.00019301,2]
[366758581,1750434641637,-460.0,0.00019301,2]
[366758582,1750434641647,-460.0,0.00019301,2]
[366758583,1750434641657,-427.21930375,0.00019301,2]
[366758584,1750434641667,-460.0,0.00019301,2]
[366758585,1750434641677,-1121.3,0.00019301,2]
[366758586,1750434641686,-460.0,0.00019301,2]
[366758587,1750434641697,-611.74,0.00019301,2]
[366758588,1750434641707,-503.10002049,0.00019301,2]
[366758589,1750434641717,-440.0,0.00019301,2]
[366758590,1750434641727,-460.0,0.00019301,2]
[366758591,1750434641737,-460.0,0.00019301,2]
[366758592,1750434641747,-154.69531629,0.00019301,2]
[366758593,1750434641757,-460.0,0.00019301,2]
[366758594,1750434641767,-460.0,0.00019301,2]
[366758595,1750434641778,-250.0,0.00019301,2]
[366758596,1750434641790,-468.10903227,0.00019301,2]
[366758597,1750434641801,-460.0,0.00019301,2]
[366758598,1750434641811,-460.0,0.00019301,2]
[366758599,1750434641820,-460.0,0.00019301,2]
[366758600,1750434641831,-460.0,0.00019301,2]
[366758601,1750434641840,-460.0,0.00019301,2]
[366758602,1750434641850,-617.93,0.00019301,2]
[366758603,1750434641860,-460.0,0.00019301,2]
[366758604,1750434641870,-460.0,0.00019301,2]
[366758605,1750434641881,-460.0,0.00019301,2]
[366758606,1750434641891,-500.0,0.00019301,2]
[366758607,1750434641901,-460.0,0.00019301,2]
[366758608,1750434641911,-460.0,0.00019301,2]
[366758609,1750434641922,-500.0,0.00019301,2]
[366758610,1750434641932,-460.0,0.00019301,2]
[366758611,1750434641941,-461.24180096,0.00019301,2]
[366758612,1750434641952,-460.0,0.00019301,2]
[366758613,1750434641962,-460.0,0.00019301,2]
[366758614,1750434641973,-1032.5,0.00019301,2]
[366758615,1750434641983,-460.0,0.00019301,2]
[366758616,1750434642160,-460.0,0.00019301,2]
[366758617,1750434642171,-460.0,0.00019301,2]
[366758618,1750434642182,-460.0,0.00019301,2]
[366758619,1750434642192,-460.0,0.00019301,2]
[366758620,1750434642202,-195.55912763,0.00019301,2]
[366758621,1750434642212,-460.0,0.00019301,2]
[366758622,1750434642222,-559.21,0.00019301,2]
[366758623,1750434642231,-375.03161163,0.00019301,2]
[366758624,1750434642241,-460.0,0.00019302,2]
[366758625,1750434642250,-460.0,0.00019302,2]
[366758626,1750434642260,-460.0,0.00019302,2]
[366758627,1750434642269,-460.0,0.00019302,2]
[366758628,1750434642279,-460.0,0.00019302,2]
[366758629,1750434642289,-460.0,0.00019302,2]
[366758630,1750434642298,-460.0,0.00019302,2]
[366758631,1750434642308,-155.74958061,0.00019302,2]
[366758632,1750434642318,-415.36314958,0.00019302,2]
[366758633,1750434642328,-460.0,0.00019302,2]
[366758634,1750434642338,-460.0,0.00019302,2]
[366758635,1750434642348,-460.0,0.00019302,2]
[366758636,1750434642358,-460.0,0.00019302,2]
[366758637,1750434642368,-460.0,0.00019302,2]
[366758638,1750434642379,-340.87968809,0.00019302,2]
[366758639,1750434642390,-460.0,0.00019302,2]
[366758640,1750434642401,-460.0,0.00019302,2]
[366758641,1750434642411,-460.0,0.00019302,2]
[366758642,1750434642421,-460.0,0.00019302,2]
[366758643,1750434642430,-460.0,0.00019302,2]
[366758644,1750434642440,-460.0,0.00019302,2]
[366758645,1750434642450,-458.17410885,0.00019302,2]
[366758646,1750434642460,-155.916,0.00019302,2]
[366758647,1750434642471,-500.0,0.00019302,2]
[366758648,1750434642481,-500.0,0.00019302,2]
[366758649,1750434642491,-500.0,0.00019302,2]
[366758650,1750434642502,-460.0,0.00019302,2]
[366758651,1750434642512,-864.56,0.00019302,2]
[366758652,1750434642522,-460.0,0.00019302,2]
[366758653,1750434642536,-460.0,0.00019302,2]
[366758654,1750434642546,-167.04344271,0.00019302,2]
[366758655,1750434642555,-992.41,0.00019302,2]
[366758656,1750434642566,-460.0,0.00019302,2]
[366758657,1750434642576,-2253.28,0.00019302,2]
[366758658,1750434642586,-558.39461952,0.00019302,2]
[366758659,1750434642596,-791.08,0.00019302,2]
[366758660,1750434642608,-500.0,0.00019302,2]
[366758661,1750434642617,-500.0,0.00019302,2]
[366758662,1750434642629,-500.0,0.00019302,2]
[366758663,1750434642639,-500.0,0.00019302,2]
[366758664,1750434642649,-500.0,0.00019302,2]
[366758665,1750434642659,-500.0,0.00019302,2]
[366758666,1750434642669,-460.0,0.00019302,2]
[366758667,1750434642679,-414.91286384,0.00019302,2]
[366758668,1750434642690,-460.0,0.00019302,2]
[366758669,1750434642703,-460.0,0.00019303,2]
[366758670,1750434642712,-463.25848789,0.00019303,2]
[366758671,1750434642722,-400.0,0.00019303,2]
[366758672,1750434642731,-456.22131786,0.00019303,2]
[366758673,1750434642742,-460.0,0.00019303,2]
[366758674,1750434642751,-460.0,0.00019303,2]
[366758675,1750434642761,-300.0,0.00019303,2]
[366758676,1750434642771,-460.0,0.00019303,2]
[366758677,1750434642781,-371.64696487,0.00019303,2]
[366758678,1750434642791,-444.07707778,0.00019303,2]
[366758679,1750434642801,-460.0,0.00019303,2]
[366758680,1750434642810,-460.0,0.00019303,2]
[366758681,1750434642820,-460.0,0.00019303,2]
[366758682,1750434642830,-444.88283975,0.00019303,2]
[366758683,1750434642839,-460.0,0.00019303,2]
[366758684,1750434642849,-460.0,0.00019303,2]
[366758685,1750434642859,-460.0,0.00019303,2]
[366758686,1750434642870,-460.0,0.00019303,2]
[366758687,1750434642879,-460.0,0.00019303,2]
[366758688,1750434642889,-462.76779169,0.00019303,2]
[366758689,1750434642899,-460.0,0.00019303,2]
[366758690,1750434642909,-460.0,0.00019303,2]
[366758691,1750434642920,-460.0,0.00019303,2]
[366758692,1750434642929,-460.0,0.00019303,2]
[366758693,1750434642939,-460.0,0.00019303,2]
[366758694,1750434642948,-235.83248476,0.00019303,2]
[366758695,1750434642959,-460.0,0.00019303,2]
[366758696,1750434642969,-485.315503,0.00019303,2]
[366758697,1750434642979,-460.0,0.00019303,2]
[366758698,1750434642988,-460.0,0.00019303,2]
[366758699,1750434642998,-460.0,0.00019303,2]
[366758700,1750434643007,-443.98133902,0.00019303,2]
[366758701,1750434643017,-480.58439964,0.00019303,2]
[366758702,1750434643027,-460.0,0.00019303,2]
[366758703,1750434643036,-460.0,0.00019303,2]
[366758704,1750434643045,-460.0,0.00019303,2]
[366758705,1750434643055,-164.9369668,0.00019303,2]
[366758706,1750434643064,-460.0,0.00019303,2]
[366758707,1750434643074,-462.74857471,0.00019303,2]
[366758708,1750434643083,-300.0,0.00019303,2]
[366758709,1750434643093,-460.0,0.00019303,2]
[366758711,1750434643102,-460.0,0.00019303,2]
[366758713,1750434643112,-460.0,0.00019303,2]
[366758715,1750434643121,-460.0,0.00019303,2]
[366758716,1750434643131,-460.0,0.00019303,2]
[366758717,1750434643140,-460.0,0.00019303,2]
[366758719,1750434643150,-460.0,0.00019303,2]
[366758721,1750434643160,-460.0,0.00019303,2]
[366758723,1750434643169,-460.0,0.00019303,2]
[366758725,1750434643178,-460.0,0.00019303,2]
[366758727,1750434643188,-403.45053996,0.00019303,2]
[366758729,1750434643198,-464.28194219,0.00019303,2]
[366758730,1750434643207,-460.0,0.00019303,2]
[366758731,1750434643216,-460.0,0.00019303,2]
[366758732,1750434643226,-588.0,0.00019303,2]
[366758734,1750434643235,-460.0,0.00019303,2]
[366758735,1750434643245,-460.0,0.00019303,2]
[366758736,1750434643255,-460.0,0.00019303,2]
[366758737,1750434643264,-460.0,0.00019303,2]
[366758739,1750434643274,-460.0,0.00019303,2]
[366758740,1750434643283,-460.0,0.00019303,2]
[366758741,1750434643293,-269.88839009,0.00019303,2]
[366758742,1750434643302,-460.0,0.00019303,2]
[366758743,1750434643311,-336.90534374,0.00019303,2]
[366758745,1750434643321,-460.0,0.00019303,2]
[366758746,1750434643331,-460.0,0.00019303,2]
[366758747,1750434643341,-355.29218197,0.00019303,2]
[366758748,1750434643350,-460.0,0.00019303,2]
[366758749,1750434643360,-500.0,0.00019303,2]
[366758750,1750434643369,-214.73489041,0.00019303,2]
[366758751,1750434643379,-314.38222581,0.00019303,2]
[366758752,1750434643389,-460.0,0.00019303,2]
[366758753,1750434643399,-460.0,0.00019303,2]
[366758754,1750434643409,-571.3782252,0.00019303,2]
[366758755,1750434643418,-408.70822817,0.00019303,2]
[366758756,1750434643428,-460.0,0.00019303,2]
[366758757,1750434643438,-420.0,0.00019303,2]
[366758758,1750434643448,-460.0,0.00019303,2]
[366758759,1750434643458,-460.0,0.00019303,2]
[366758760,1750434643468,-300.28518161,0.00019303,2]
[366758761,1750434643478,-460.0,0.00019303,2]
[366758762,1750434643488,-362.17995959,0.00019303,2]
[366758763,1750434643498,-460.0,0.00019303,2]
[366758764,1750434643508,-460.0,0.00019303,2]
[366758765,1750434643518,-460.0,0.00019303,2]
[366758766,1750434643530,-460.0,0.00019303,2]
[366758767,1750434643540,-420.85842984,0.00019303,2]
[366758768,1750434643550,-460.0,0.00019303,2]
[366758769,1750434643560,-460.0,0.00019303,2]
[366758770,1750434643570,-460.0,0.00019303,2]
[366758771,1750434643579,-361.13745139,0.00019303,2]
[366758772,1750434643589,-460.0,0.00019303,2]
[366758774,1750434643598,-460.0,0.00019303,2]
[366758776,1750434643609,-373.28436183,0.00019303,2]
[366758778,1750434643618,-460.0,0.00019303,2]
[366758780,1750434643629,-460.0,0.00019303,2]
[366758782,1750434643639,-500.0,0.00019303,2]
[366758784,1750434643648,-460.0,0.00019303,2]
[366758785,1750434643658,-460.0,0.00019303,2]
[366758786,1750434643668,-301.38057013,0.00019303,2]
[366758788,1750434643677,-460.0,0.00019303,2]
[366758790,1750434643687,-430.63438417,0.00019303,2]
[366758792,1750434643697,-460.0,0.00019303,2]
[366758794,1750434643707,-460.0,0.00019303,2]
[366758797,1750434643717,-460.0,0.00019303,2]
[366758799,1750434643727,-460.0,0.00019303,2]
[366758801,1750434643737,-460.0,0.00019303,2]
[366758803,1750434643747,-460.0,0.00019303,2]
[366758805,1750434643756,-460.0,0.00019303,2]
[366758807,1750434643766,-384.58060037,0.00019303,2]
[366758809,1750434643775,-404.9027959,0.00019303,2]
[366758810,1750434643785,-460.0,0.00019303,2]
[366758813,1750434643796,-421.41443926,0.00019303,2]
[366758814,1750434643806,-471.63211033,0.00019303,2]
[366758816,1750434643815,-460.0,0.00019303,2]
[366758819,1750434643826,-460.0,0.00019303,2]
[366758820,1750434643836,-460.0,0.00019303,2]
[366758822,1750434643845,-460.0,0.00019303,2]
[366758824,1750434643854,-433.14220181,0.00019303,2]
[366758826,1750434643864,-460.0,0.00019303,2]
[366758828,1750434643874,-460.0,0.00019303,2]
[366758830,1750434643884,-460.0,0.00019303,2]
[366758832,1750434643893,-460.0,0.00019303,2]
[366758834,1750434643902,-460.0,0.00019303,2]
[366758836,1750434643911,-460.0,0.00019303,2]
[366758838,1750434643921,-460.31570967,0.00019303,2]
[366758840,1750434643930,-475.06123768,0.00019303,2]
[366758842,1750434643940,-460.0,0.00019303,2]
[366758844,1750434643950,-460.0,0.00019303,2]
[366758846,1750434643959,-460.0,0.00019303,2]
[366758848,1750434643968,-460.0,0.00019303,2]
[366758850,1750434643977,-460.0,0.00019303,2]
[366758852,1750434643987,-1000.0,0.00019303,2]
[366758854,1750434643996,-460.0,0.00019303,2]
[366758856,1750434644007,-460.0,0.00019303,2]
[366758858,1750434644016,-460.0,0.00019303,2]
[366758860,1750434644026,-430.0,0.00019303,2]
[366758862,1750434644036,-460.0,0.00019303,2]
[366758864,1750434644045,-460.0,0.00019303,2]
[366758866,1750434644055,-460.0,0.00019303,2]
[366758868,1750434644065,-460.0,0.00019303,2]
[366758870,1750434644075,-390.15768203,0.00019303,2]
[366758872,1750434644084,-460.0,0.00019303,2]
[366758874,1750434644094,-460.0,0.00019303,2]
[366758876,1750434644104,-460.0,0.00019303,2]
[366758878,1750434644113,-460.0,0.00019303,2]
[366758880,1750434644123,-460.0,0.00019303,2]
[366758882,1750434644133,-430.0,0.00019303,2]
[366758884,1750434644142,-460.0,0.00019303,2]
[366758885,1750434644151,-463.81494935,0.00019303,2]
[366758887,1750434644161,-605.52298959,0.00019303,2]
[366758889,1750434644171,-460.0,0.00019303,2]
[366758891,1750434644180,-460.0,0.00019303,2]
[366758893,1750434644190,-460.0,0.00019303,2]
[366758895,1750434644199,-460.0,0.00019303,2]
[366758897,1750434644209,-460.0,0.00019303,2]
[366758899,1750434644218,-460.0,0.00019303,2]
[366758900,1750434644227,-460.0,0.00019303,2]
[366758901,1750434644237,-460.0,0.00019303,2]
[366758902,1750434644246,-460.0,0.00019303,2]
[366758903,1750434644256,-460.0,0.00019303,2]
[366758904,1750434644266,-500.0,0.00019303,2]
[366758906,1750434644275,-514.10422598,0.00019303,2]
[366758908,1750434644285,-460.0,0.00019303,2]
[366758910,1750434644295,-460.0,0.00019303,2]
[366758912,1750434644304,-460.0,0.00019303,2]
[366758914,1750434644314,-430.0,0.00019304,2]
[366758916,1750434644323,-431.69858461,0.00019304,2]
[366758918,1750434644333,-543.05869218,0.00019304,2]
[366758920,1750434644343,-460.0,0.00019304,2]
[366758922,1750434644352,-460.0,0.00019304,2]
[366758924,1750434644361,-460.0,0.00019304,2]
[366758926,1750434644371,-460.0,0.00019304,2]
[366758928,1750434644380,-440.96263899,0.00019304,2]
[366758930,1750434644390,-460.0,0.00019304,2]
[366758932,1750434644399,-500.0,0.00019305,2]
[366758934,1750434644409,-500.0,0.00019305,2]
[366758936,1750434644419,-1000.0,0.00019305,2]
[366758938,1750434644428,-255.0,0.0001931,2]
[366758940,1750434644437,-255.0,0.00019315,2]
[366758942,1750434644447,-255.0,0.0001932,2]
[366758944,1750434644456,-255.0,0.00019325,2]
[366758946,1750434644465,-255.0,0.0001933,2]
[366758948,1750434644475,-255.0,0.00019335,2]
[366758949,1750434644485,-224.17622585,0.0001934,2]
[366758951,1750434644494,-500.0,0.00019372,2]
[366758953,1750434644503,-500.0,0.00019373,2]
[366758955,1750434644513,-162.09691986,0.00019373,2]
[366758957,1750434644523,-500.0,0.00019373,2]
[366758959,1750434644537,-622.97557046,0.00019373,2]
[366758961,1750434644547,-504.97186885,0.00019373,2]
[366758963,1750434644556,-500.82424216,0.00019373,2]
[366758965,1750434644566,-500.0,0.00019373,2]
[366758968,1750434644576,-618.45210752,0.00019373,2]
[366758969,1750434644586,-500.0,0.00019373,2]
[366758971,1750434644595,-500.0,0.00019373,2]
[366758973,1750434644605,-500.0,0.00019373,2]
[366758975,1750434644615,-630.11050256,0.00019373,2]
[366758977,1750434644624,-500.0,0.00019373,2]
[366758979,1750434644634,-500.0,0.00019373,2]
[366758981,1750434644643,-500.0,0.00019373,2]
[366758983,1750434644653,-500.0,0.00019373,2]
[366758985,1750434644663,-500.0,0.00019373,2]
[366758987,1750434644673,-500.0,0.00019373,2]
[366758989,1750434644683,-500.0,0.00019373,2]
[366758991,1750434644693,-500.0,0.00019373,2]
[366758993,1750434644703,-502.88093826,0.00019373,2]
[366758995,1750434644713,-450.29205052,0.00019373,2]
[366758997,1750434644722,-500.0,0.00019373,2]
[366758999,1750434644732,-500.0,0.00019373,2]
[366759001,1750434644742,-500.0,0.00019373,2]
[366759003,1750434644752,-500.0,0.00019373,2]
[366759005,1750434644762,-500.0,0.00019373,2]
[366759007,1750434644771,-312.49333932,0.00019373,2]
[366759009,1750434644781,-500.0,0.00019373,2]
[366759011,1750434644791,-500.0,0.00019373,2]
[366759013,1750434644801,-203.32136593,0.00019373,2]
[366759015,1750434644811,-500.0,0.00019373,2]
[366759017,1750434644820,-500.0,0.00019373,2]
[366759019,1750434644830,-500.0,0.00019373,2]
[366759021,1750434644840,-500.0,0.00019373,2]
[366759023,1750434644850,-294.13956959,0.00019373,2]
[366759025,1750434644860,-500.0,0.00019373,2]
[366759027,1750434644870,-212.51649764,0.00019373,2]
[366759029,1750434644879,-581.39062138,0.00019373,2]
[366759031,1750434644889,-500.0,0.00019373,2]
[366759033,1750434644899,-500.0,0.00019373,2]
[366759035,1750434644908,-500.0,0.00019373,2]
[366759037,1750434644918,-500.0,0.00019373,2]
[366759039,1750434644928,-500.0,0.00019373,2]
[366759041,1750434644937,-500.0,0.00019373,2]
[366759043,1750434644947,-500.0,0.00019373,2]
[366759045,1750434644956,-500.0,0.00019373,2]
[366759047,1750434644968,-500.0,0.00019373,2]
[366759049,1750434644977,-502.81683429,0.00019373,2]
[366759051,1750434644987,-500.0,0.00019373,2]
[366759053,1750434644996,-506.03016744,0.00019373,2]
[366759055,1750434645006,-512.07253761,0.00019373,2]
[366759057,1750434645015,-6744.92795448,0.00019376,2]
[366759059,1750434645025,-500.0,0.00019386,2]
[366759061,1750434645035,-1000.0,0.00019386,2]
[366759063,1750434645045,-500.0,0.00019387,2]
[366759065,1750434645055,-1000.0,0.00019387,2]
[366759067,1750434645064,-160.0,0.00019395,2]
[366759069,1750434645073,-1000.0,0.00019395,2]
[366759071,1750434645083,-196.22,0.00019395,2]
[366759073,1750434645092,-460.0,0.00019396,2]
[366759075,1750434645101,-1000.0,0.00019396,2]
[366759077,1750434645111,-1000.0,0.00019397,2]
[366759079,1750434645120,-1000.0,0.00019397,2]
[366759081,1750434645131,-1000.0,0.00019397,2]
[366759083,1750434645140,-1000.0,0.00019408,2]
[366759085,1750434645150,-1000.0,0.00019408,2]
[366759087,1750434645159,-1000.0,0.00019451,2]
[366759089,1750434645169,-1031.67527876,0.00019501,2]
[366759091,1750434645179,-6744.92795448,0.00019551,2]
[366759092,1750434645189,-460.0,0.00019572,2]
[366759094,1750434645198,-460.0,0.00019572,2]
[366759096,1750434645208,-767.24,0.00019572,2]
[366759099,1750434645218,-460.0,0.00019572,2]